[Event "Titled Tuesday Blitz August 3 2021"]
[White "Pridorozhni, Aleksei"]
[Black "Hjartarson, Johann"]
[WhiteFideId "4127870"]
[BlackFideId "2300044"]
[WhiteElo "2565"]
[BlackElo "2502"]
[Result "0-1"]
[Round "02"]
[TimeControl "180+1"]
[Date "2021.08.03"]
[WhiteClock "0:01:28"]
[BlackClock "0:00:10"]

1. e4 {[%clk 0:03:00]}  g6 {[%clk 0:02:59]} 2. d4 {[%clk 0:02:57]}  Bg7 {[%clk 0:02:59]} 3. c4 {[%clk 0:02:58]}  d6 {[%clk 0:02:59]} 4. Nc3 {[%clk 0:02:58]}  Nf6 {[%clk 0:02:59]} 5. f3 {[%clk 0:02:58]}  O-O {[%clk 0:02:58]} 6. Be3 {[%clk 0:02:57]}  e5 {[%clk 0:02:58]} 7. Nge2 {[%clk 0:02:57]}  c6 {[%clk 0:02:57]} 8. d5 {[%clk 0:02:57]}  cxd5 {[%clk 0:02:57]} 9. cxd5 {[%clk 0:02:58]}  Nbd7 {[%clk 0:02:57]} 10. g4 {[%clk 0:02:56]}  h5 {[%clk 0:02:53]} 11. h3 {[%clk 0:02:55]}  a6 {[%clk 0:02:51]} 12. Qd2 {[%clk 0:02:53]}  b5 {[%clk 0:02:49]} 13. Bg5 {[%clk 0:02:52]}  Qe8 {[%clk 0:02:45]} 14. Ng3 {[%clk 0:02:52]}  Nh7 {[%clk 0:02:18]} 15. Bh6 {[%clk 0:02:50]}  h4 {[%clk 0:02:16]} 16. Nge2 {[%clk 0:02:50]}  Qe7 {[%clk 0:02:15]} 17. Be3 {[%clk 0:02:44]}  Bf6 {[%clk 0:02:13]} 18. a4 {[%clk 0:02:41]}  b4 {[%clk 0:02:11]} 19. Nd1 {[%clk 0:02:41]}  a5 {[%clk 0:02:10]} 20. Nc1 {[%clk 0:02:38]}  Bg5 {[%clk 0:02:09]} 21. Nb3 {[%clk 0:02:33]}  Ba6 {[%clk 0:02:06]} 22. Bxa6 {[%clk 0:02:31]}  Rxa6 {[%clk 0:02:05]} 23. Rc1 {[%clk 0:02:31]}  Bxe3 {[%clk 0:02:02]} 24. Qxe3 {[%clk 0:02:28]}  Qg5 {[%clk 0:02:00]} 25. Ke2 {[%clk 0:02:26]}  Rfa8 {[%clk 0:01:43]} 26. Nf2 {[%clk 0:02:23]}  Nb6 {[%clk 0:01:42]} 27. Rc2 {[%clk 0:02:13]}  Nxa4 {[%clk 0:01:39]} 28. Ra1 {[%clk 0:02:14]}  Nb6 {[%clk 0:01:39]} 29. Rc6 {[%clk 0:02:14]}  a4 {[%clk 0:01:28]} 30. Nd2 {[%clk 0:02:14]}  a3 {[%clk 0:01:23]} 31. bxa3 {[%clk 0:02:12]}  Qxe3+ {[%clk 0:01:21]} 32. Kxe3 {[%clk 0:02:12]}  Rxa3+ {[%clk 0:01:21]} 33. Rxa3 {[%clk 0:02:11]}  Rxa3+ {[%clk 0:01:20]} 34. Ke2 {[%clk 0:02:12]}  Na4 {[%clk 0:01:19]} 35. Nc4 {[%clk 0:02:05]}  Ra2+ {[%clk 0:01:12]} 36. Ke3 {[%clk 0:02:05]}  b3 {[%clk 0:01:10]} 37. Rxd6 {[%clk 0:02:03]}  Rc2 {[%clk 0:01:05]} 38. Na3 {[%clk 0:01:55]}  Rc3+ {[%clk 0:00:52]} 39. Kd2 {[%clk 0:01:44]}  b2 {[%clk 0:00:51]} 40. Nb1 {[%clk 0:01:40]}  Rc1 {[%clk 0:00:50]} 41. Na3 {[%clk 0:01:38]}  Ra1 {[%clk 0:00:47]} 42. Rd8+ {[%clk 0:01:36]}  Kg7 {[%clk 0:00:46]} 43. Nd3 {[%clk 0:01:37]}  Rxa3 {[%clk 0:00:44]} 44. Nxb2 {[%clk 0:01:38]}  Nxb2 {[%clk 0:00:43]} 45. d6 {[%clk 0:01:39]}  Ng5 {[%clk 0:00:38]} 46. d7 {[%clk 0:01:39]}  Ne6 {[%clk 0:00:37]} 47. Re8 {[%clk 0:01:38]}  Nc4+ {[%clk 0:00:36]} 48. Ke2 {[%clk 0:01:37]}  Nf4+ {[%clk 0:00:34]} 49. Kf2 {[%clk 0:01:36]}  Ra2+ {[%clk 0:00:33]} 50. Kg1 {[%clk 0:01:24]}  Nxh3+ {[%clk 0:00:32]} 51. Kf1 {[%clk 0:01:22]}  Ra1+ {[%clk 0:00:28]} 52. Ke2 {[%clk 0:01:21]}  Nf4+ {[%clk 0:00:28]} 53. Kf2 {[%clk 0:01:20]}  Ra2+ {[%clk 0:00:27]} 54. Kg1 {[%clk 0:01:18]}  Ne6 {[%clk 0:00:15]} 55. Rxe6 {[%clk 0:01:18]}  Rd2 {[%clk 0:00:14]} 56. Re7 {[%clk 0:01:18]}  Ne3 {[%clk 0:00:13]} 57. Re8 {[%clk 0:01:19]}  Rxd7 {[%clk 0:00:11]} 58. g5 {[%clk 0:01:20]}  Rd2 {[%clk 0:00:09]} 59. Ra8 {[%clk 0:01:20]}  h3 {[%clk 0:00:09]} 60. Ra1 {[%clk 0:01:19]}  h2+ {[%clk 0:00:08]} 61. Kh1 {[%clk 0:01:19]}  Rf2 {[%clk 0:00:08]} 62. f4 {[%clk 0:01:18]}  Nf1 {[%clk 0:00:08]} 63. Rxf1 {[%clk 0:01:18]}  Rxf1+ {[%clk 0:00:07]} 64. Kxh2 {[%clk 0:01:19]}  Rxf4 {[%clk 0:00:07]} 65. Kg3 {[%clk 0:01:20]}  Rxe4 {[%clk 0:00:07]} 66. Kf3 {[%clk 0:01:21]}  Rf4+ {[%clk 0:00:08]} 67. Ke3 {[%clk 0:01:22]}  f6 {[%clk 0:00:08]} 68. Kd3 {[%clk 0:01:23]}  fxg5 {[%clk 0:00:08]} 69. Ke2 {[%clk 0:01:24]}  g4 {[%clk 0:00:08]} 70. Ke3 {[%clk 0:01:25]}  g3 {[%clk 0:00:09]} 71. Kd3 {[%clk 0:01:26]}  g2 {[%clk 0:00:09]} 72. Ke3 {[%clk 0:01:26]}  g1=Q+ {[%clk 0:00:10]} 73. Ke2 {[%clk 0:01:27]}  Qg2+ {[%clk 0:00:10]} 74. Kd3 {[%clk 0:01:28]}  Qg3+ {[%clk 0:00:10]} 0-1


[Site "https://www.chess.com"]

[Event "Titled Tuesday Blitz August 3 2021"]
[White "Reprintsev, Alexander"]
[Black "Quispe Arteaga, Gabriel"]
[WhiteFideId "14100541"]
[BlackFideId "32059809"]
[WhiteElo "2126"]
[BlackElo "2172"]
[Result "0-1"]
[Round "02"]
[TimeControl "180+1"]
[Date "2021.08.03"]
[WhiteClock "0:00:18"]
[BlackClock "0:00:13"]

1. e4 {[%clk 0:02:57]}  c5 {[%clk 0:02:58]} 2. b3 {[%clk 0:02:56]}  e6 {[%clk 0:02:56]} 3. Qe2 {[%clk 0:02:55]}  Nc6 {[%clk 0:02:56]} 4. Bb2 {[%clk 0:02:40]}  a6 {[%clk 0:02:56]} 5. g3 {[%clk 0:02:39]}  b5 {[%clk 0:02:48]} 6. Bg2 {[%clk 0:01:25]}  Bb7 {[%clk 0:02:47]} 7. a4 {[%clk 0:01:25]}  Qb6 {[%clk 0:02:44]} 8. axb5 {[%clk 0:01:24]}  axb5 {[%clk 0:02:44]} 9. Rxa8+ {[%clk 0:01:24]}  Bxa8 {[%clk 0:02:45]} 10. Nc3 {[%clk 0:01:24]}  Nd4 {[%clk 0:02:42]} 11. Qd1 {[%clk 0:01:21]}  Nf6 {[%clk 0:02:42]} 12. Nge2 {[%clk 0:01:14]}  h5 {[%clk 0:02:35]} 13. O-O {[%clk 0:01:10]}  h4 {[%clk 0:02:34]} 14. Qa1 {[%clk 0:01:10]}  Bb7 {[%clk 0:02:31]} 15. Nxd4 {[%clk 0:01:10]}  cxd4 {[%clk 0:02:31]} 16. Ne2 {[%clk 0:01:11]}  e5 {[%clk 0:02:31]} 17. c3 {[%clk 0:01:09]}  hxg3 {[%clk 0:02:30]} 18. hxg3 {[%clk 0:01:08]}  d3 {[%clk 0:02:26]} 19. Nc1 {[%clk 0:01:07]}  Ng4 {[%clk 0:02:25]} 20. Nxd3 {[%clk 0:01:06]}  Qh6 {[%clk 0:02:23]} 21. Rd1 {[%clk 0:00:58]}  f5 {[%clk 0:01:20]} 22. Qa7 {[%clk 0:00:56]}  Bxe4 {[%clk 0:01:20]} 23. Bxe4 {[%clk 0:00:53]}  fxe4 {[%clk 0:01:20]} 24. Qa8+ {[%clk 0:00:53]}  Kf7 {[%clk 0:01:19]} 25. Qxe4 {[%clk 0:00:53]}  Qh2+ {[%clk 0:00:44]} 26. Kf1 {[%clk 0:00:52]}  Qh1+ {[%clk 0:00:45]} 27. Qxh1 {[%clk 0:00:51]}  Rxh1+ {[%clk 0:00:46]} 28. Ke2 {[%clk 0:00:52]}  Rxd1 {[%clk 0:00:46]} 29. Kxd1 {[%clk 0:00:52]}  e4 {[%clk 0:00:47]} 30. Nf4 {[%clk 0:00:43]}  Nxf2+ {[%clk 0:00:44]} 31. Ke2 {[%clk 0:00:44]}  Ng4 {[%clk 0:00:44]} 32. Nd5 {[%clk 0:00:40]}  Bd6 {[%clk 0:00:41]} 33. Nb6 {[%clk 0:00:26]}  Ke6 {[%clk 0:00:16]} 34. c4 {[%clk 0:00:26]}  bxc4 {[%clk 0:00:16]} 35. bxc4 {[%clk 0:00:26]}  g6 {[%clk 0:00:13]} 36. d3 {[%clk 0:00:20]}  exd3+ {[%clk 0:00:13]} 37. Kxd3 {[%clk 0:00:20]}  Bxg3 {[%clk 0:00:14]} 38. Nd5 {[%clk 0:00:20]}  Ne5+ {[%clk 0:00:13]} 39. Ke4 {[%clk 0:00:19]}  Nxc4 {[%clk 0:00:12]} 40. Bc1 {[%clk 0:00:19]}  Nd6+ {[%clk 0:00:12]} 41. Kd4 {[%clk 0:00:20]}  Bf2+ {[%clk 0:00:12]} 42. Ne3 {[%clk 0:00:18]}  Nf5+ {[%clk 0:00:12]} 43. Ke4 {[%clk 0:00:18]}  Bxe3 {[%clk 0:00:12]} 44. Bxe3 {[%clk 0:00:18]}  Nxe3 {[%clk 0:00:13]} 0-1


[Site "https://www.chess.com"]

[Event "Titled Tuesday Blitz August 3 2021"]
[White "Rottenwohrer Suarez, Juan"]
[Black "Shimelkov, Vasiliy"]
[WhiteFideId "32068182"]
[BlackFideId "13701630"]
[WhiteElo "2158"]
[BlackElo "2073"]
[Result "0-1"]
[Round "02"]
[TimeControl "180+1"]
[Date "2021.08.03"]
[WhiteClock "0:00:02"]
[BlackClock "0:00:14"]

1. d4 {[%clk 0:02:55]}  d5 {[%clk 0:02:59]} 2. c4 {[%clk 0:02:55]}  e6 {[%clk 0:02:59]} 3. Nc3 {[%clk 0:02:54]}  Be7 {[%clk 0:02:59]} 4. cxd5 {[%clk 0:02:54]}  exd5 {[%clk 0:02:59]} 5. Bf4 {[%clk 0:02:55]}  Nf6 {[%clk 0:02:58]} 6. h3 {[%clk 0:02:55]}  O-O {[%clk 0:02:58]} 7. e3 {[%clk 0:02:56]}  c5 {[%clk 0:02:57]} 8. Bd3 {[%clk 0:02:52]}  b6 {[%clk 0:02:57]} 9. Nf3 {[%clk 0:02:52]}  Na6 {[%clk 0:02:55]} 10. O-O {[%clk 0:02:51]}  Nc7 {[%clk 0:02:54]} 11. Rc1 {[%clk 0:02:50]}  Ne6 {[%clk 0:02:54]} 12. Bh2 {[%clk 0:02:48]}  Bb7 {[%clk 0:02:52]} 13. Ne5 {[%clk 0:02:41]}  h6 {[%clk 0:02:35]} 14. Bf5 {[%clk 0:02:39]}  Ng5 {[%clk 0:02:17]} 15. Qb3 {[%clk 0:02:17]}  c4 {[%clk 0:01:57]} 16. Qd1 {[%clk 0:02:17]}  a6 {[%clk 0:01:54]} 17. b3 {[%clk 0:02:14]}  b5 {[%clk 0:01:53]} 18. bxc4 {[%clk 0:02:13]}  dxc4 {[%clk 0:01:51]} 19. h4 {[%clk 0:02:12]}  Nge4 {[%clk 0:01:47]} 20. Nxe4 {[%clk 0:01:44]}  Nxe4 {[%clk 0:01:33]} 21. h5 {[%clk 0:01:44]}  Nf6 {[%clk 0:01:14]} 22. Ng4 {[%clk 0:01:12]}  Qd5 {[%clk 0:00:59]} 23. Nxf6+ {[%clk 0:01:11]}  Bxf6 {[%clk 0:00:59]} 24. Qg4 {[%clk 0:01:11]}  b4 {[%clk 0:00:46]} 25. Bf4 {[%clk 0:01:09]}  c3 {[%clk 0:00:43]} 26. Bxh6 {[%clk 0:00:59]}  Qxg2+ {[%clk 0:00:42]} 27. Qxg2 {[%clk 0:00:59]}  Bxg2 {[%clk 0:00:41]} 28. Kxg2 {[%clk 0:00:59]}  gxh6 {[%clk 0:00:40]} 29. Kf3 {[%clk 0:00:57]}  a5 {[%clk 0:00:37]} 30. d5 {[%clk 0:00:41]}  a4 {[%clk 0:00:35]} 31. Rb1 {[%clk 0:00:41]}  Rab8 {[%clk 0:00:34]} 32. Bc2 {[%clk 0:00:40]}  Rfd8 {[%clk 0:00:26]} 33. e4 {[%clk 0:00:39]}  a3 {[%clk 0:00:24]} 34. Ke3 {[%clk 0:00:35]}  Rdc8 {[%clk 0:00:20]} 35. f4 {[%clk 0:00:35]}  Be7 {[%clk 0:00:20]} 36. e5 {[%clk 0:00:32]}  Kf8 {[%clk 0:00:17]} 37. Bb3 {[%clk 0:00:25]}  Bc5+ {[%clk 0:00:17]} 38. Ke4 {[%clk 0:00:25]}  Rd8 {[%clk 0:00:16]} 39. d6 {[%clk 0:00:24]}  Ba7 {[%clk 0:00:15]} 40. Kf5 {[%clk 0:00:22]}  Rbc8 {[%clk 0:00:14]} 41. Rbc1 {[%clk 0:00:19]}  Be3 {[%clk 0:00:14]} 42. Rc2 {[%clk 0:00:19]}  Bd2 {[%clk 0:00:15]} 43. Ke4 {[%clk 0:00:11]}  Rc5 {[%clk 0:00:14]} 44. Rf2 {[%clk 0:00:07]}  Ra5 {[%clk 0:00:14]} 45. Rfxd2 {[%clk 0:00:05]}  cxd2 {[%clk 0:00:13]} 46. Rxd2 {[%clk 0:00:06]}  Rc5 {[%clk 0:00:13]} 47. f5 {[%clk 0:00:02]}  Rc3 {[%clk 0:00:14]} 0-1


[Site "https://www.chess.com"]

[Event "Titled Tuesday Blitz August 3 2021"]
[White "Savitha Shri B"]
[Black "Wagh Suyog"]
[WhiteFideId "35061887"]
[BlackFideId "25071688"]
[WhiteElo "2006"]
[BlackElo "2219"]
[Result "0-1"]
[Round "02"]
[TimeControl "180+1"]
[Date "2021.08.03"]
[WhiteClock "0:00:21"]
[BlackClock "0:00:20"]

1. e4 {[%clk 0:02:54]}  c6 {[%clk 0:02:50]} 2. d4 {[%clk 0:02:54]}  g6 {[%clk 0:02:50]} 3. Nc3 {[%clk 0:02:53]}  Bg7 {[%clk 0:02:50]} 4. Be3 {[%clk 0:02:54]}  d5 {[%clk 0:02:50]} 5. Qd2 {[%clk 0:02:53]}  dxe4 {[%clk 0:02:45]} 6. Nxe4 {[%clk 0:02:54]}  Nf6 {[%clk 0:02:45]} 7. Nxf6+ {[%clk 0:02:52]}  exf6 {[%clk 0:02:45]} 8. O-O-O {[%clk 0:02:51]}  Be6 {[%clk 0:02:44]} 9. b3 {[%clk 0:02:37]}  a5 {[%clk 0:02:43]} 10. a4 {[%clk 0:02:31]}  O-O {[%clk 0:02:36]} 11. h4 {[%clk 0:02:31]}  b5 {[%clk 0:02:24]} 12. axb5 {[%clk 0:02:21]}  a4 {[%clk 0:02:25]} 13. b4 {[%clk 0:02:21]}  a3 {[%clk 0:02:21]} 14. Kb1 {[%clk 0:02:20]}  cxb5 {[%clk 0:02:19]} 15. Bxb5 {[%clk 0:02:18]}  f5 {[%clk 0:01:54]} 16. Nf3 {[%clk 0:02:11]}  f4 {[%clk 0:01:40]} 17. Bxf4 {[%clk 0:01:52]}  Na6 {[%clk 0:01:34]} 18. c4 {[%clk 0:01:46]}  Nc7 {[%clk 0:01:24]} 19. Bxc7 {[%clk 0:01:40]}  Qxc7 {[%clk 0:01:23]} 20. d5 {[%clk 0:01:39]}  a2+ {[%clk 0:01:19]} 21. Kc2 {[%clk 0:01:27]}  Bf5+ {[%clk 0:01:13]} 22. Kb3 {[%clk 0:01:26]}  Qa7 {[%clk 0:00:52]} 23. c5 {[%clk 0:01:19]}  Rfb8 {[%clk 0:00:51]} 24. Kc4 {[%clk 0:01:16]}  Rxb5 {[%clk 0:00:48]} 25. Nd4 {[%clk 0:01:12]}  Rbb8 {[%clk 0:00:37]} 26. d6 {[%clk 0:00:48]}  Qa6+ {[%clk 0:00:37]} 27. Kd5 {[%clk 0:00:49]}  Qb7+ {[%clk 0:00:30]} 28. Kc4 {[%clk 0:00:46]}  Be4 {[%clk 0:00:28]} 29. b5 {[%clk 0:00:31]}  Qd5+ {[%clk 0:00:28]} 30. Kb4 {[%clk 0:00:31]}  a1=Q {[%clk 0:00:24]} 31. Rxa1 {[%clk 0:00:30]}  Bxd4 {[%clk 0:00:24]} 32. Rac1 {[%clk 0:00:23]}  Rxb5+ {[%clk 0:00:21]} 33. Kxb5 {[%clk 0:00:21]}  Rb8+ {[%clk 0:00:21]} 34. Ka4 {[%clk 0:00:20]}  Qa8+ {[%clk 0:00:20]} 35. Qa5 {[%clk 0:00:21]}  Bc6+ {[%clk 0:00:20]} 0-1


[Site "https://www.chess.com"]

[Event "Titled Tuesday Blitz August 3 2021"]
[White "Siddharth, Jagadeesh"]
[Black "Seo, Jung Min"]
[WhiteFideId "5818320"]
[BlackFideId "1734687"]
[WhiteElo "2127"]
[BlackElo "2486"]
[Result "1-0"]
[Round "02"]
[TimeControl "180+1"]
[Date "2021.08.03"]
[WhiteClock "0:00:46"]
[BlackClock "0:01:05"]

1. d4 {[%clk 0:03:00]}  Nf6 {[%clk 0:02:59]} 2. c4 {[%clk 0:03:01]}  g6 {[%clk 0:02:59]} 3. Nc3 {[%clk 0:03:01]}  d5 {[%clk 0:03:00]} 4. cxd5 {[%clk 0:03:02]}  Nxd5 {[%clk 0:03:00]} 5. e4 {[%clk 0:03:03]}  Nxc3 {[%clk 0:03:01]} 6. bxc3 {[%clk 0:03:04]}  c5 {[%clk 0:03:01]} 7. Nf3 {[%clk 0:03:02]}  Bg7 {[%clk 0:03:01]} 8. h3 {[%clk 0:03:02]}  Nc6 {[%clk 0:02:58]} 9. Be3 {[%clk 0:03:02]}  Qa5 {[%clk 0:02:57]} 10. Bd2 {[%clk 0:02:59]}  O-O {[%clk 0:02:56]} 11. Be2 {[%clk 0:02:57]}  cxd4 {[%clk 0:02:53]} 12. cxd4 {[%clk 0:02:57]}  Qa3 {[%clk 0:02:48]} 13. d5 {[%clk 0:02:57]}  Nd4 {[%clk 0:02:42]} 14. Nxd4 {[%clk 0:02:55]}  Bxd4 {[%clk 0:02:42]} 15. Rb1 {[%clk 0:02:54]}  Qxa2 {[%clk 0:02:41]} 16. O-O {[%clk 0:02:44]}  a5 {[%clk 0:02:35]} 17. Bh6 {[%clk 0:02:24]}  Bg7 {[%clk 0:02:34]} 18. Bxg7 {[%clk 0:02:24]}  Kxg7 {[%clk 0:02:35]} 19. Qd4+ {[%clk 0:02:25]}  Kg8 {[%clk 0:02:35]} 20. Bc4 {[%clk 0:02:22]}  Qa3 {[%clk 0:02:34]} 21. Rb3 {[%clk 0:02:11]}  Qa4 {[%clk 0:02:31]} 22. Ra1 {[%clk 0:02:11]}  Qd7 {[%clk 0:02:30]} 23. Bb5 {[%clk 0:02:07]}  Qd8 {[%clk 0:02:29]} 24. h4 {[%clk 0:02:03]}  Bd7 {[%clk 0:02:25]} 25. h5 {[%clk 0:02:00]}  Bxb5 {[%clk 0:02:23]} 26. Rxb5 {[%clk 0:02:01]}  Qd7 {[%clk 0:02:20]} 27. h6 {[%clk 0:01:45]}  f6 {[%clk 0:02:15]} 28. Rbxa5 {[%clk 0:01:43]}  Rxa5 {[%clk 0:02:15]} 29. Rxa5 {[%clk 0:01:44]}  Rc8 {[%clk 0:02:14]} 30. Rc5 {[%clk 0:01:43]}  Rxc5 {[%clk 0:02:13]} 31. Qxc5 {[%clk 0:01:44]}  b5 {[%clk 0:02:08]} 32. Qb6 {[%clk 0:01:40]}  Qg4 {[%clk 0:01:57]} 33. Qxb5 {[%clk 0:01:33]}  Kf7 {[%clk 0:01:52]} 34. Qd3 {[%clk 0:01:30]}  Qf4 {[%clk 0:01:49]} 35. Qc4 {[%clk 0:01:21]}  Qd6 {[%clk 0:01:42]} 36. g3 {[%clk 0:01:22]}  g5 {[%clk 0:01:42]} 37. Qc8 {[%clk 0:01:18]}  Kg6 {[%clk 0:01:38]} 38. Qf8 {[%clk 0:01:16]}  Kh5 {[%clk 0:01:32]} 39. Qg7 {[%clk 0:01:15]}  f5 {[%clk 0:01:22]} 40. Qf7+ {[%clk 0:01:07]}  Kxh6 {[%clk 0:01:22]} 41. Qxf5 {[%clk 0:01:07]}  Qc5 {[%clk 0:01:19]} 42. Kg2 {[%clk 0:01:06]}  Qd6 {[%clk 0:01:14]} 43. Kh3 {[%clk 0:01:04]}  Qa6 {[%clk 0:01:06]} 44. Kg4 {[%clk 0:00:46]}  Qe2+ {[%clk 0:01:05]} 45. f3 {[%clk 0:00:46]} 1-0


[Site "https://www.chess.com"]

[Event "Titled Tuesday Blitz August 3 2021"]
[White "Song, Michael"]
[Black "Makhnev, Denis"]
[WhiteFideId "2613190"]
[BlackFideId "13707647"]
[WhiteElo "2274"]
[BlackElo "2537"]
[Result "1-0"]
[Round "02"]
[TimeControl "180+1"]
[Date "2021.08.03"]
[WhiteClock "0:01:24"]
[BlackClock "0:01:25"]

1. d4 {[%clk 0:03:00]}  d5 {[%clk 0:02:57]} 2. Nf3 {[%clk 0:03:01]}  Nf6 {[%clk 0:02:57]} 3. Bf4 {[%clk 0:03:02]}  c5 {[%clk 0:02:57]} 4. e3 {[%clk 0:03:02]}  Nc6 {[%clk 0:02:57]} 5. c3 {[%clk 0:03:03]}  Qb6 {[%clk 0:02:53]} 6. Qb3 {[%clk 0:03:02]}  Nh5 {[%clk 0:02:54]} 7. Qxb6 {[%clk 0:02:57]}  axb6 {[%clk 0:02:50]} 8. Bc7 {[%clk 0:02:57]}  c4 {[%clk 0:02:32]} 9. Bxb6 {[%clk 0:02:44]}  Bf5 {[%clk 0:02:31]} 10. Bc5 {[%clk 0:02:33]}  Bxb1 {[%clk 0:02:29]} 11. Rxb1 {[%clk 0:02:33]}  Rxa2 {[%clk 0:02:30]} 12. b3 {[%clk 0:02:27]}  cxb3 {[%clk 0:02:30]} 13. Rxb3 {[%clk 0:02:26]}  Ra1+ {[%clk 0:02:16]} 14. Kd2 {[%clk 0:02:26]}  Nf6 {[%clk 0:02:14]} 15. Rxb7 {[%clk 0:02:18]}  Ne4+ {[%clk 0:02:14]} 16. Kc2 {[%clk 0:02:15]}  e6 {[%clk 0:01:29]} 17. Bb5 {[%clk 0:02:06]}  Rxh1 {[%clk 0:01:25]} 18. Bxc6+ {[%clk 0:02:05]}  Kd8 {[%clk 0:01:25]} 19. Bb6+ {[%clk 0:01:55]}  Kc8 {[%clk 0:01:26]} 20. Rc7+ {[%clk 0:01:33]}  Kd8 {[%clk 0:01:25]} 21. Ra7+ {[%clk 0:01:24]} 1-0


[Site "https://www.chess.com"]

[Event "Titled Tuesday Blitz August 3 2021"]
[White "Svane, Rasmus"]
[Black "Kubatko, Ivan"]
[WhiteFideId "4657101"]
[BlackFideId "24111473"]
[WhiteElo "2669"]
[BlackElo "2285"]
[Result "1-0"]
[Round "02"]
[TimeControl "180+1"]
[Date "2021.08.03"]
[WhiteClock "0:00:31"]
[BlackClock "0:00:01"]

1. Nf3 {[%clk 0:03:00]}  d5 {[%clk 0:02:59]} 2. g3 {[%clk 0:03:01]}  c5 {[%clk 0:02:55]} 3. Bg2 {[%clk 0:03:01]}  Nc6 {[%clk 0:02:55]} 4. d4 {[%clk 0:03:01]}  e6 {[%clk 0:02:55]} 5. O-O {[%clk 0:03:01]}  Nf6 {[%clk 0:02:55]} 6. c4 {[%clk 0:03:01]}  Be7 {[%clk 0:02:54]} 7. cxd5 {[%clk 0:03:01]}  exd5 {[%clk 0:02:53]} 8. dxc5 {[%clk 0:03:02]}  Bxc5 {[%clk 0:02:53]} 9. Qc2 {[%clk 0:03:02]}  Bb6 {[%clk 0:02:52]} 10. Nc3 {[%clk 0:03:02]}  O-O {[%clk 0:02:52]} 11. Na4 {[%clk 0:03:02]}  Re8 {[%clk 0:02:24]} 12. Bg5 {[%clk 0:02:59]}  h6 {[%clk 0:02:16]} 13. Nxb6 {[%clk 0:02:58]}  axb6 {[%clk 0:02:15]} 14. Bf4 {[%clk 0:02:57]}  Qe7 {[%clk 0:02:01]} 15. Rfe1 {[%clk 0:02:57]}  Nb4 {[%clk 0:01:55]} 16. Qb3 {[%clk 0:02:52]}  Bf5 {[%clk 0:01:50]} 17. Nd4 {[%clk 0:02:47]}  Be4 {[%clk 0:01:46]} 18. Bxe4 {[%clk 0:02:18]}  dxe4 {[%clk 0:01:18]} 19. Nf5 {[%clk 0:02:13]}  Qc5 {[%clk 0:01:18]} 20. Nd6 {[%clk 0:02:13]}  Re7 {[%clk 0:01:02]} 21. Rac1 {[%clk 0:02:11]}  Qa5 {[%clk 0:01:02]} 22. Bd2 {[%clk 0:02:07]}  e3 {[%clk 0:00:37]} 23. Bxb4 {[%clk 0:01:50]}  exf2+ {[%clk 0:00:36]} 24. Kxf2 {[%clk 0:01:51]}  Ng4+ {[%clk 0:00:21]} 25. Kg1 {[%clk 0:01:37]}  Qh5 {[%clk 0:00:20]} 26. h4 {[%clk 0:01:24]}  Re3 {[%clk 0:00:20]} 27. Rc3 {[%clk 0:01:18]}  Rxc3 {[%clk 0:00:12]} 28. Qxc3 {[%clk 0:01:12]}  Rd8 {[%clk 0:00:05]} 29. Rf1 {[%clk 0:01:09]}  Ne5 {[%clk 0:00:04]} 30. Nf5 {[%clk 0:01:06]}  Re8 {[%clk 0:00:03]} 31. Ne7+ {[%clk 0:00:57]}  Kh8 {[%clk 0:00:03]} 32. Rf5 {[%clk 0:00:56]}  Qg4 {[%clk 0:00:02]} 33. Qxe5 {[%clk 0:00:52]}  f6 {[%clk 0:00:02]} 34. Qf4 {[%clk 0:00:37]}  Qxe2 {[%clk 0:00:02]} 35. Qf2 {[%clk 0:00:33]}  Qd1+ {[%clk 0:00:01]} 36. Kh2 {[%clk 0:00:33]}  Kh7 {[%clk 0:00:01]} 37. h5 {[%clk 0:00:32]}  Qd7 {[%clk 0:00:01]} 38. Ng6 {[%clk 0:00:31]} 1-0


[Site "https://www.chess.com"]

[Event "Titled Tuesday Blitz August 3 2021"]
[White "Terry, Renato"]
[Black "Solon, Nathan"]
[WhiteFideId "3803457"]
[BlackFideId "2017229"]
[WhiteElo "2581"]
[BlackElo "2621"]
[Result "1-0"]
[Round "02"]
[TimeControl "180+1"]
[Date "2021.08.03"]
[WhiteClock "0:01:17"]
[BlackClock "0:01:16"]

1. e4 {[%clk 0:03:00]}  c5 {[%clk 0:02:58]} 2. Nf3 {[%clk 0:03:01]}  d6 {[%clk 0:02:59]} 3. Bb5+ {[%clk 0:03:01]}  Nd7 {[%clk 0:02:59]} 4. d4 {[%clk 0:03:01]}  cxd4 {[%clk 0:02:59]} 5. Qxd4 {[%clk 0:03:02]}  a6 {[%clk 0:02:59]} 6. Bxd7+ {[%clk 0:03:01]}  Bxd7 {[%clk 0:03:00]} 7. Bg5 {[%clk 0:03:02]}  Nf6 {[%clk 0:02:34]} 8. O-O {[%clk 0:02:59]}  e6 {[%clk 0:02:31]} 9. Nc3 {[%clk 0:02:57]}  Bc6 {[%clk 0:02:29]} 10. Rad1 {[%clk 0:02:56]}  Be7 {[%clk 0:02:29]} 11. Qe3 {[%clk 0:02:55]}  Qa5 {[%clk 0:02:18]} 12. e5 {[%clk 0:02:41]}  Ng4 {[%clk 0:01:53]} 13. Qf4 {[%clk 0:02:32]}  Bxg5 {[%clk 0:01:39]} 14. Qxg4 {[%clk 0:02:02]}  Bxf3 {[%clk 0:01:38]} 15. Qxf3 {[%clk 0:02:03]}  Qxe5 {[%clk 0:01:36]} 16. Rfe1 {[%clk 0:02:02]}  Qa5 {[%clk 0:01:26]} 17. Rd5 {[%clk 0:01:18]}  Qb4 {[%clk 0:01:16]} 18. Rxg5 {[%clk 0:01:17]} 1-0


[Site "https://www.chess.com"]